Cogmind - Beta 14 @@@ ROGUE MODE // 2024.11.12 @ 16:08:40 Player: Nicky Result: Self-destructed Performance ------------- Evolutions (3) 1500 Regions Visited (6) 1200 Robots Destroyed (13) 65 Value Destroyed (158) 158 Prototype IDs (4) 80 Alien Tech Used (0) 0 Bonus (378) 378 TOTAL SCORE: 3381 Bonus ------- Follower Combat Kills 378 Cogmind --------- Core Integrity 491/700 Matter 300/300 Energy 14/100 System Corruption 5% Temperature Cool (0) Movement Core (50) Location -7/Factory Parts ------- > --- POWER (2) -------- (None) > --- PROPULSION (4) --- (None) > --- UTILITY (5) ------ Weight Redist. System Transport Network Coupler > --- WEAPON (2) ------- (None) > --- INVENTORY (5) ---- Target Analyzer Shield Generator Rocket Launcher Peak State ------------ > --- POWER ------------ Light Nuclear Core > --- PROPULSION ------- Airjet Airjet Airjet > --- UTILITY ---------- Medium Storage Unit Experimental Sensor Array Improved Targeting Computer Melee Analysis Suite > --- WEAPON ----------- Minigun Makeshift Hammer > --- INVENTORY -------- Weight Redist. System Transport Network Coupler Target Analyzer Shield Generator Heavy EM Shotgun Heavy EM Shotgun Heavy Assault Rifle Light Cannon Grenade Launcher Rocket Launcher [Rating: 36] Favorites ----------- Power Ion Engine Engine Ion Engine Power Core Light Nuclear Core Propulsion Wheel Wheel Wheel Hover Unit Airjet Flight Unit Improved VTOL Module Utility Medium Storage Unit Device Experimental Sensor Array Storage Medium Storage Unit Processor Targeting Computer Protection Backup Plating III Weapon Assault Rifle Energy Gun Heavy EM Shotgun Ballistic Gun Assault Rifle Launcher Grenade Launcher Impact Weapon Makeshift Hammer Build | -11 -10 -10 -10 -9 -8 -7 ------- Run | Yrd Mat Min Exi Min Mat Fac Slots Evolved 6 | . . . . . 4 2 Power 1 | . . . . . 1 . Propulsion 2 | . . . . . 1 1 Utility 3 | . . . . . 2 1 Weapon . | . . . . . . . Parts Attached 34 | 6 2 . 1 5 15 5 Power 3 | 1 . . . 2 . . Engine 2 | 1 . . . 1 . . Core 1 | . . . . 1 . . Reactor . | . . . . . . . Propulsion 11 | 2 . . . 1 7 1 Treads . | . . . . . . . Leg . | . . . . . . . Wheel 4 | 2 . . . 1 . 1 Hover 6 | . . . . . 6 . Flight 1 | . . . . . 1 . Utility 11 | 1 2 . . 1 4 3 Device 3 | . . . . . 1 2 Storage 2 | 1 1 . . . . . Processor 5 | . 1 . . 1 3 . Hackware . | . . . . . . . Protection 1 | . . . . . . 1 Artifact . | . . . . . . . Weapon 9 | 2 . . 1 1 4 1 Energy Gun 1 | . . . . . . 1 Energy Cannon . | . . . . . . . Ballistic Gun 4 | 2 . . . 1 1 . Ballistic Cannon . | . . . . . . . Launcher 1 | . . . 1 . . . Special Weapon . | . . . . . . . Impact Weapon 3 | . . . . . 3 . Slashing Weapon . | . . . . . . . Piercing Weapon . | . . . . . . . Special Melee Weapon . | . . . . . . . Unidentified Prototypes 3 | . . . . . 2 1 Parts Lost 14 | . . . . . 9 5 Power 1 | . . . . . 1 . Propulsion 7 | . . . . . 6 1 Utility 4 | . . . . . 1 3 Weapon 2 | . . . . . 1 1 Highest Loss Streak 7 | . . . . . 7 4 To Critical Strikes 1 | . . . . . 1 . Average Slot Usage (%) 91 | . 90 100 100 100 69 45 Engine 10 | . 14 14 14 13 . . Wheel 23 | . 28 28 28 28 10 . Hover 1 | . . . . . 7 . Device 1 | . . . . . 5 11 Storage 12 | . 14 14 14 14 8 . Processor 14 | . 4 14 14 14 15 22 Ballistic Gun 20 | . 28 28 23 22 9 . Launcher 2 | . . . 4 5 . . Impact Weapon 1 | . . . . . 7 6 Peak Build Rating 36 | 6 8 8 9 12 36 17 Average Rating 11 | 2 6 8 8 10 22 15 On Entrance 7 | . 6 8 8 9 12 12 Naked Turns . | . . . . . . . Heaviest Build 25 | 14 19 19 20 25 22 5 Greatest Support 26 | 26 26 26 26 26 26 10 Greatest Overweight (x) 2 | . . . . . 2 1 Average Overweight (x) . | . . . . . . . Largest Inventory Capacity 10 | 8 10 10 10 10 10 5 Average Capacity 9 | 7 8 10 10 10 9 5 Most Carried 10 | 8 9 10 10 10 10 4 Average Carried 9 | 5 6 9 9 9 9 3 Final Capacity 10 | 8 10 10 10 10 5 5 Final Carried 10 | 6 9 9 10 10 5 3 Class Distribution -------------------- 56% | Commander-Mutant 39% | Mutant 4% | Scavenger-Mutant Dominant Class ---------------- Mutant | -10/Materials Mutant | -10/Mines Commander-Mutant | -10/Exiles Commander-Mutant | -9/Mines Mutant | -8/Materials Mutant | -7/Factory Resources | -11 -10 -10 -10 -9 -8 -7 ----------- Run | Yrd Mat Min Exi Min Mat Fac Matter Collected 683 | 175 45 123 3 216 75 46 Remotely . | . . . . . . . Salvage Created 404 | . 45 33 10 26 244 46 Parts 15 | . 5 5 . . 3 2 Haulers Intercepted 3 | . 1 . . . 2 . Recyclers Shooed . | . . . . . . . Parts Field Recycled . | . . . . . . . Retrieved Matter . | . . . . . . . Parts Self-Destructed . | . . . . . . . Prevented . | . . . . . . . Kills | -11 -10 -10 -10 -9 -8 -7 ------- Run | Yrd Mat Min Exi Min Mat Fac Combat Hostiles Destroyed 10 | . . 3 . 2 5 . Melee 2 | . . . . . 2 . Guns 5 | . . 3 . 2 . . Classes Destroyed 5 | . 1 1 . 1 1 1 Worker 2 | . . . . . . 2 Hauler 3 | . 1 . . . 2 . Swarmer 6 | . . 3 . . 3 . Sentry 2 | . . . . . 2 . Assembled 2 | . . . . 2 . . Best Kill Streak 5 | . 1 2 . 2 5 1 Combat Bots Only 2 | . . 2 . 2 2 . Max Kills in Single Turn 1 | . 1 1 . 1 1 1 Gunslinging . | . . . . . . . Exploded . | . . . . . . . Melee 1 | . . . . . 1 . Uniques/NPCs Destroyed . | . . . . . . . Combat | -11 -10 -10 -10 -9 -8 -7 -------- Run | Yrd Mat Min Exi Min Mat Fac Hostile Shots Fired 278 | . . 23 . 20 172 63 Missed 89 | . . 6 . 4 59 20 Damage Taken 2148 | . . 126 15 335 1194 478 Core 675 | . . 14 . 109 343 209 Absorbed by Shields 4 | . . . . . . 4 Core Remaining (%) 62 | 100 . . . 50 37 . Volleys Fired 30 | . 5 12 5 8 . . Largest 2 | . 2 2 2 2 . . Hottest 50 | . 40 40 50 50 . . Shots Fired 60 | . 10 24 10 16 . . Gun 54 | . 10 24 5 15 . . Cannon . | . . . . . . . Launcher 6 | . . . 5 1 . . Special . | . . . . . . . Kinetic 54 | . 10 24 5 15 . . Thermal . | . . . . . . . Explosive 6 | . . . 5 1 . . Electromagnetic . | . . . . . . . Robot Hit Streak 4 | . 3 2 . 4 . . Robot Miss Streak 6 | . 2 6 . 1 . . Penetration Max . | . . . . . . . Secondary Targets . | . . . . . . . Shots Hit Robots 46 | . 7 7 . 11 16 5 Core Hits 24 | . 2 3 8 7 1 3 Critical Kills 1 | . . . . . . 1 Critical Parts Destroyed 2 | . . . . . 2 . Critical Strikes 4 | . . . . . 3 1 Smash 4 | . . . . . 3 1 Melee Attacks 33 | . . . . . 27 6 Impact 33 | . . . . . 27 6 Slashing . | . . . . . . . Piercing . | . . . . . . . Sneak Attacks 6 | . . . . . 4 2 Combat Hostiles . | . . . . . . . Follow-up Attacks . | . . . . . . . Damage Inflicted 1762 | . 91 88 261 178 827 317 Guns 317 | . 91 88 . 138 . . Cannons . | . . . . . . . Explosions 301 | . . . 261 40 . . Melee 1119 | . . . . . 827 292 Ramming 25 | . . . . . . 25 Kinetic 317 | . 91 88 . 138 . . Thermal . | . . . . . . . Explosive 301 | . . . 261 40 . . Electromagnetic . | . . . . . . . Impact 1119 | . . . . . 827 292 Slashing . | . . . . . . . Piercing . | . . . . . . . Highest Corruption 5 | . . . . . . 5 Average Corruption 4 | . . . . . . 4 Corruption Purged . | . . . . . . . Corruption Blocked . | . . . . . . . Overload Shots . | . . . . . . . Overflow Damage 261 | . . . 3 . 193 65 Projectiles . | . . . . . . . Explosions 3 | . . . 3 . . . Melee 258 | . . . . . 193 65 Knockbacks 3 | . . . . . 2 1 Impact 3 | . . . . . 2 1 Kinetic . | . . . . . . . Secondary . | . . . . . . . Self-Inflicted Damage 56 | . . . 16 29 . 11 Shots 2 | . . . 1 1 . . Rammed 7 | . . . . . . 7 Targets Rammed 7 | . . . . . . 7 Kicked . | . . . . . . . Crushed . | . . . . . . . Highest Temperature 261 | . 6 . . 6 261 . Average Temperature 98 | . 6 . . 4 123 . Received Heat Transfer 444 | . . . . 18 294 132 Siege Activations . | . . . . . . . Robots Corrupted 5 | . . . . . 4 1 Combat Hostiles 3 | . . . . . 3 . Parts Fried 4 | . . . . . 3 1 Impact Corruptions 13 | . . . . . 10 3 Robots Melted . | . . . . . . . Combat Hostiles . | . . . . . . . Parts Melted . | . . . . . . . Heat Transferred . | . . . . . . . Parts Sabotaged . | . . . . . . . Parts Stolen . | . . . . . . . Parts Stripped . | . . . . . . . Power Chain Reactions . | . . . . . . . Alert | -11 -10 -10 -10 -9 -8 -7 ------- Run | Yrd Mat Min Exi Min Mat Fac Peak Influence 418 | . 37 114 . 319 418 328 Initial 189 | . . 14 . . 55 189 Average 135 | . 7 72 . 174 165 243 Maximum Alert Level 2 | . . . . 1 2 1 Low Security (%) 75 | 100 100 100 . 62 72 35 Level 1 22 | . . . . 37 21 64 Level 2 1 | . . . . . 6 . Level 3 . | . . . . . . . Level 4 . | . . . . . . . Level 5 . | . . . . . . . High Security . | . . . . . . . Max Security . | . . . . . . . Squads Dispatched 5 | . 1 . . . 3 1 Investigation 2 | . . . . . 1 1 Extermination . | . . . . . . . Reinforcement 3 | . 1 . . . 2 . Assault . | . . . . . . . Garrison . | . . . . . . . Intercept . | . . . . . . . Searches Triggered . | . . . . . . . Construction Impeded . | . . . . . . . Haulers Reinforced . | . . . . . . . Active Scanning Responses . | . . . . . . . Cargo Convoy Interrupts . | . . . . . . . Stealth | -11 -10 -10 -10 -9 -8 -7 --------- Run | Yrd Mat Min Exi Min Mat Fac Distress Signals 5 | . . . . 1 4 . Communications Jammed . | . . . . . . . Distress Signals . | . . . . . . . Times Spotted 67 | . 2 5 . 14 34 12 Peak Tracking Total 13 | . 2 3 . 4 13 5 Tactical Retreats 12 | . . 1 . 1 7 3 Traps | -11 -10 -10 -10 -9 -8 -7 ------- Run | Yrd Mat Min Exi Min Mat Fac Traps Triggered 1 | . . . . . . 1 Indirectly . | . . . . . . . Trap Hack Attempts . | . . . . . . . Triggered . | . . . . . . . Disarmed . | . . . . . . . Reprogrammed . | . . . . . . . Reused . | . . . . . . . Traps Extracted . | . . . . . . . Installed . | . . . . . . . Triggered . | . . . . . . . Machines | -11 -10 -10 -10 -9 -8 -7 ---------- Run | Yrd Mat Min Exi Min Mat Fac Machines Disabled 1 | . . . 1 . . . Max in Single Turn 1 | . . . 1 . . . Machines Repaired . | . . . . . . . Machines Dismantled . | . . . . . . . Machines Sabotaged . | . . . . . . . Overloaded Fab Kills . | . . . . . . . Hacking | -11 -10 -10 -10 -9 -8 -7 --------- Run | Yrd Mat Min Exi Min Mat Fac Machines Accessed 8 | . . . 4 . 3 1 Terminals 3 | . . . . . 2 1 Fabricators . | . . . . . . . Repair Stations . | . . . . . . . Recycling Units . | . . . . . . . Scanalyzers 1 | . . . . . 1 . Garrison Access . | . . . . . . . Total Hacks 30 | . . . 19 . 6 5 Successful 24 | . . . 19 . 3 2 Failed 6 | . . . . . 3 3 Catastrophic 1 | . . . . . . 1 Database Lockouts . | . . . . . . . Manual 12 | . . . 3 . 4 5 Terminals 10 | . . . . . 5 5 Fabricators . | . . . . . . . Repair Stations . | . . . . . . . Recycling Units . | . . . . . . . Scanalyzers 1 | . . . . . 1 . Garrison Access . | . . . . . . . Terminal Hacks 20 | . . . 19 . 1 . Record 20 | . . . 19 . 1 . Fabricator Hacks . | . . . . . . . Repair Station Hacks . | . . . . . . . Recycling Unit Hacks . | . . . . . . . Scanalyzer 1 | . . . . . 1 . Insert Component 1 | . . . . . 1 . Garrison Access Hacks . | . . . . . . . Unauthorized Hacks 3 | . . . . . 1 2 Terminals 3 | . . . . . 1 2 Assimilate 1 | . . . . . . 1 Botnet 2 | . . . . . 1 1 Fabricators . | . . . . . . . Repair Stations . | . . . . . . . Recycling Units . | . . . . . . . Scanalyzers . | . . . . . . . Garrison Access . | . . . . . . . Data Cores Recovered . | . . . . . . . Used . | . . . . . . . Hacking Detections 3 | . . . . . 2 1 Full Trace Events 2 | . . . . . 1 1 Feedback Events . | . . . . . . . Feedback Blocked . | . . . . . . . Robot Schematics Acquired . | . . . . . . . Robots Built . | . . . . . . . Authchips . | . . . . . . . Time . | . . . . . . . Total Robot Build Rating . | . . . . . . . Part Schematics Acquired . | . . . . . . . Parts Built . | . . . . . . . Authchips . | . . . . . . . Time . | . . . . . . . Total Part Build Rating . | . . . . . . . Parts Repaired . | . . . . . . . Time . | . . . . . . . Parts Recycled . | . . . . . . . Recycled Matter . | . . . . . . . Retrieved Matter . | . . . . . . . Retrieved Components . | . . . . . . . Parts Scanalyzed . | . . . . . . . Part Schematics Acquired . | . . . . . . . Parts Damaged . | . . . . . . . Bothacking | -11 -10 -10 -10 -9 -8 -7 ------------ Run | Yrd Mat Min Exi Min Mat Fac Used RIF Installer . | . . . . . . . Robots Hacked . | . . . . . . . Non-combat . | . . . . . . . Combat . | . . . . . . . Robot Hacks Applied . | . . . . . . . Relay Couplers Released . | . . . . . . . Fabnet Peak Effective % . | . . . . . . . Robots Rewired 4 | . . . 4 . . . Allies Hacked . | . . . . . . . Hacks Repelled . | . . . . . . . Allies | -11 -10 -10 -10 -9 -8 -7 -------- Run | Yrd Mat Min Exi Min Mat Fac Total Allies 8 | . . 3 4 . . 1 Largest Group 7 | . . 3 7 7 5 1 Highest-Rated Group 85 | . . 40 85 85 61 10 Highest-Rated Ally 21 | . . 16 21 21 21 10 Total Orders . | . . . . . . . Ally Attacks 85 | . . . . 61 24 . Total Damage 1064 | . . . . 721 343 . Kills 18 | . . . . 15 3 . Allies Corrupted . | . . . . . . . Allies Melted . | . . . . . . . Intel | -11 -10 -10 -10 -9 -8 -7 ------- Run | Yrd Mat Min Exi Min Mat Fac Robot Analysis Total . | . . . . . . . Derelict Logs Recovered 4 | . . 3 . 1 . . Drone Launches . | . . . . . . . Drone Recoveries . | . . . . . . . Exploration | -11 -10 -10 -10 -9 -8 -7 ------------- Run | Yrd Mat Min Exi Min Mat Fac Turns Passed 2291 | 55 89 369 882 419 333 144 Spaces Moved 2161 | 48 71 359 861 381 270 171 Core 206 | 11 . . . . 31 164 Treads . | . . . . . . . Legs . | . . . . . . . Wheels 1845 | 37 71 359 861 381 129 7 Hover 110 | . . . . . 110 . Flight . | . . . . . . . Fastest Speed 50 | 50 90 90 90 90 50 50 Average Speed 85 | 79 90 90 90 90 72 63 Slowest Speed 190 | 90 90 90 90 90 190 100 Overloaded Moves . | . . . . . . . Propulsion Burnouts . | . . . . . . . Robots Hopped . | . . . . . . . Cave-ins Triggered . | . . . . . . . Exploration Rate (%) 41 | 4 17 71 73 76 46 6 Regions Visited 6 Branch Regions 3 Pre-discovered Areas 2 | . . 2 . . . . Known Exits Taken . | . . . . . . . Unknown Exits Taken 6 | 1 1 1 1 1 1 . Scrap Searched 3 | . . 1 . 2 . . Spaces Dug 12 | . . . 12 . . . Terrain Destroyed 27 | . . . 17 10 . . Melee . | . . . . . . . Projectile . | . . . . . . . AOE 27 | . . . 17 10 . . Terrain Rammed . | . . . . . . . Walls Destroyed . | . . . . . . . Machines Disabled . | . . . . . . . Actions | -11 -10 -10 -10 -9 -8 -7 --------- Run | Yrd Mat Min Exi Min Mat Fac Total 2502 | 63 87 381 957 441 377 196 Wait 126 | . 1 7 21 42 51 4 Move 2155 | 47 70 358 860 380 269 171 Hop . | . . . . . . . Pick Up 27 | 10 6 2 1 2 6 . Fast Attach 10 | 2 . . . . 6 2 Attach 13 | 4 1 . . . 5 3 Detach 2 | . . . . . . 2 Swap 11 | . 1 . 1 5 4 . Drop 19 | . 3 2 . 4 9 1 Fire 30 | . 5 12 5 8 . . Melee 33 | . . . . . 27 6 Ram 7 | . . . . . . 7 Kick . | . . . . . . . Crush . | . . . . . . . Escape Stasis . | . . . . . . . Rewire 69 | . . . 69 . . . Trap . | . . . . . . . Miscellaneous . | . . . . . . . Route ------- -11/Scrapyard -10/Materials -10/Mines -10/Exiles (discovered 2 exits: [*Min x2]) -9/Mines -8/Materials (discovered 2 exits: *Fac / [*Sto]) -7/Factory (discovered 1 exit: Low) History --------- Turn | Location | Event 25 | -11/Scrapyard | Discovered new exit (range 15) 56 | -11/Scrapyard | Entered Materials 127 | -10/Materials | Discovered new exit (range 6) 145 | -10/Materials | Entered Mines 173 | -10/Mines | Learned location of Zion (-6) 226 | -10/Mines | Received a Rocket Launcher from a helpful Derelict 291 | -10/Mines | Learned 2 Materials zone layouts 315 | -10/Mines | Build established: Mutant 369 | -10/Mines | Assisted by bots powering up and referring to "LRC-V3" 430 | -10/Mines | Found a damaged Exp. Sensor Array with a note attached 433 | -10/Mines | Found Prototype Device 467 | -10/Mines | Found a hidden stash of uninstalled traps 501 | -10/Mines | Deemed a non-threat by the Exiles lab entrance 502 | -10/Mines | Discovered new exit (range 5) 514 | -10/Mines | Entered Exiles 514 | -10/Exiles | Found Exiles lab destroyed 514 | -10/Exiles | Accompanied by 3 allies 531 | -10/Exiles | Discovered new exit (range 15) 871 | -10/Exiles | Build established: Commander-Mutant 894 | -10/Exiles | Discovered new exit (range 11) 1396 | -10/Exiles | Entered Mines 1396 | -9/Mines | Accompanied by 7 allies 1544 | -9/Mines | Assembled infested the area 1781 | -9/Mines | Discovered new exit (range 9) 1815 | -9/Mines | Entered Materials 1815 | -8/Materials | Accompanied by 5 allies 1815 | -8/Materials | Evolved 4 slots: Power x1, Propulsion x1, Utility x2 1836 | -8/Materials | Identified Exp. Sensor Array 1937 | -8/Materials | Discovered new exit (range 12) 1943 | -8/Materials | Lost 5 allies 2092 | -8/Materials | Lost 7 parts (1p4n1u1w) 2133 | -8/Materials | Core integrity fell below 50% 2140 | -8/Materials | Discovered new exit (range 16) 2148 | -8/Materials | Entered Factory 2148 | -7/Factory | Evolved 2 slots: Propulsion x1, Utility x1 2149 | -7/Factory | Identified exit to Lower Caves 2292 | -7/Factory | Self-destructed Last Messages --------------- Investigation squad. 02277_ Technician 4a reveals location of Ambush Trap. 02281_ Melee Analysis Suite destroyed. 02281_ Hvy. Mace destroyed. 02283_ Identified Hvy. EM Shotgun. 02283_ Faulty integration triggers system corruption (+4). 02284_ Dropped Faulty Hvy. EM Shotgun. 02285_ Slammed into Y-54 Guardian. 02286_ Destabilizing: Core damaged (-28). 02287_ Slammed into Y-54 Guardian. 02287_ Technician 4a reveals location of Ambush Trap. 02288_ U-05 Engineer destroyed. 02288_ Slammed into Y-54 Guardian. 02290_ Destabilizing: System corrupted (+1). 02290_ Technician 4a reveals location of Ambush Trap. 02290_ R-06 Scavenger collects Wheel. 02291_ Slammed into Y-54 Guardian. 02291_ Backup Plating III destroyed. 02291_ Imp. Melee Analysis Suite destroyed. 02291_ K-01 Serf collects debris. Map ----- +----------------------------------------------------+ | ??????# """" ????????????????????????????????????? | | ####### """" ???????????????????????????????????? | | + """" ??????????????????????????????????? | | # """" ??????????????????????????????????? | | + """" ??????????????????????????????????? | | # """" ??????????????????????????????????? | | # ????????????????????????????????? | | ### ???????????????????????????????? | | #?# #?????????????????????????????? | | #?##################?????????????????????????? | | ####### #?????????????????????????? | | + #?????????????????????????? | | ########### #?????????????????????????? | | ??????????# #?????????????????????????? | | ??????????# """ ##????????????????????????? | | ??????????# """ #????????????????????????? | | ??????????# """ #?????????????????????????? | | ??????????#!!! "" #?????????????????????????? | | ??????????#!! "" #?????????????????????????? | | ??????????#!! #?????????????????????????? | | ??????????# #?????????????????????????? | | ??????????# #?????????"T??????????????? | | ????#############+#############""" """##?????????? | | ??? | ????????? | | ??? k *%! % ????????? | | ?? @ "?????????? | | ?? o [ r Y ^ "?????????? | | ?? gg G????????? | | ?????###########+############ "?????????? | | ??????????????# #?? "?????????? | | ??????????????# " " " """ #??? ^ ??????????? | | ??????????????# " " " "T" #???? ??????????? | | ??????????????# " " " #????? ??????????? | | ??????????????# " " " #?????? ^ ???????????? | | ??????????????# " " " #??????? ???????????? | | ??????????????# " " " #?????????????????????? | | ??????????????# " " " #?????????????????????? | | ??????????????# " " " ! #?????????????????????? | | ??????????????# " " " #?????????????????????? | | ??????????????? #?????????????????????? | | ??????????????? #?????????????????????? | | ???????????????#############?????????????????????? | | ?????????????????????????????????????????????????? | | ?????????????????????????????????????????????????? | | ?????????????????????????????????????????????????? | | ?????????????????????????????????????????????????? | | ?????????????????????????????????????????????????? | | ?????????????????????????????????????????????????? | | ?????????????????????????????????????????????????? | | ?????????????????????????????????????????????????? | +----------------------------------------------------+ Best States ------------- Heat Dissipation 34 Energy Generation 14 Energy Capacity 265 Matter Stores 300 Matter Capacity 300 Sight Range 16 Robot Scan Range 20 Terrain Scan Density 10 Additional Mass Support 6 Armor Coverage 80 Evasion (%) 54 Targeting Accuracy 6 Melee Accuracy 11 Item Schematics ----------------- None Robot Schematics ------------------ None Fabricated ------------ Nothing Alien Tech Used ----------------- None Achievements -------------- None Challenges ------------ None Game ------ Seed ArchitectExpertMatrix Manual? 0 Play Time 00:48:42 Cumulative 16.9 hours Start 2024.11.11 @ 15:11:59 End 2024.11.12 @ 16:08:40 Sessions 3 Manual Loads 0 Difficulty Rogue Special Mode None Game No. 17 Rogue 17 Adventurer 0 Explorer 0 Win Type - Total 1 Types 1/0/0/0/0/0/0/0/0 Lore% 8 Gallery% 23 Achievement% 24 Wizard Run 0 Options --------- Layout 0 ASCII 0 Keyboard 0 Movement Arrows Keybinds 0 Fullscreen 2 Font 18/SmallcapsGlow Map View 76x50 Zoom Use 0% Tactical HUD 1 Map Filters NONE Filters NONE Steam 1 RUN: 270d0e20-d568-47bf-ad8b-5d4eac866bed